Cogmind - Beta 10.2 @@@ ROGUE MODE // 2021.04.19 @ 20:19:20 Player: thingamajigger Result: Destroyed by G-34 Mercenary with Small Laser Performance ------------- Evolutions (0) 0 Regions Visited (2) 400 Robots Destroyed (18) 90 Value Destroyed (324) 324 Prototype IDs (0) 0 Alien Tech Used (0) 0 Bonus (0) 0 TOTAL SCORE: 814 Bonus ------- None Cogmind --------- Core Integrity 0/250 Matter 259/300 Energy 236/250 System Corruption 0% Temperature Cool (6) Movement Walking (240) Ox4 Location -10/Mines Parts ------- > --- POWER (1) -------- Ion Engine > --- PROPULSION (2) --- Aluminum Leg > --- UTILITY (2) ------ Large Storage Unit Large Storage Unit > --- WEAPON (2) ------- Beam Rifle Assault Rifle > --- INVENTORY (16) --- Light Nuclear Core Medium Matter Pod (0) Beam Rifle Beam Rifle Light Assault Rifle Grenade Launcher Grenade Launcher Grenade Launcher Rocket Launcher Rocket Launcher Peak State ------------ > --- POWER ------------ Ion Engine > --- PROPULSION ------- Aluminum Leg Aluminum Leg > --- UTILITY ---------- Small Storage Unit Large Storage Unit > --- WEAPON ----------- Assault Rifle Rocket Launcher > --- INVENTORY -------- Light Nuclear Core Beam Rifle Beam Rifle Beam Rifle Light Assault Rifle Rocket Launcher [Rating: 9] Favorites ----------- Power Ion Engine Engine Ion Engine Propulsion Aluminum Leg Leg Aluminum Leg Utility Large Storage Unit Storage Large Storage Unit Weapon Assault Rifle Energy Gun Beam Rifle Ballistic Gun Assault Rifle Launcher Rocket Launcher Build | -11 -10 -10 ------- Run | Scr Mat Min Slots Evolved . | . . . Power . | . . . Propulsion . | . . . Utility . | . . . Weapon . | . . . Parts Attached 11 | 6 4 1 Power 1 | 1 . . Engine 1 | 1 . . Core . | . . . Reactor . | . . . Propulsion 2 | 2 . . Treads . | . . . Leg 2 | 2 . . Wheel . | . . . Hover . | . . . Flight . | . . . Utility 3 | 1 2 . Device . | . . . Storage 3 | 1 2 . Processor . | . . . Hackware . | . . . Protection . | . . . Artifact . | . . . Weapon 5 | 2 2 1 Energy Gun 3 | 1 1 1 Energy Cannon . | . . . Ballistic Gun 1 | 1 . . Ballistic Cannon . | . . . Launcher 1 | . 1 . Special Weapon . | . . . Impact Weapon . | . . . Slashing Weapon . | . . . Piercing Weapon . | . . . Special Melee Weapon . | . . . Unidentified Prototypes . | . . . Parts Lost 1 | . . 1 Power . | . . . Propulsion 1 | . . 1 Utility . | . . . Weapon . | . . . Highest Loss Streak 1 | . . 1 Average Slot Usage (%) 88 | . 86 89 Engine 14 | . 14 14 Leg 22 | . 28 18 Storage 22 | . 15 28 Energy Gun 10 | . 11 10 Ballistic Gun 14 | . 14 14 Launcher 3 | . 2 3 Naked Turns . | . . . Heaviest Build 43 | 12 43 43 Greatest Support 20 | 20 20 20 Greatest Overweight (x) 4 | 2 2 4 Average Overweight (x) 1 | . . 3 Largest Inventory Capacity 16 | 6 16 16 Average Capacity 11 | 5 7 16 Most Carried 10 | 3 10 10 Average Carried 7 | 1 5 10 Final Capacity 16 | 6 16 16 Final Carried 10 | 3 10 10 Class Distribution -------------------- 100% | Mutant Dominant Class ---------------- Mutant | -10/Materials Mutant | -10/Mines Resources | -11 -10 -10 ----------- Run | Scr Mat Min Matter Collected 440 | 196 118 126 Remotely . | . . . Salvage Created 319 | . 194 125 Parts 27 | . 20 7 Haulers Intercepted . | . . . Recyclers Shooed . | . . . Parts Field Recycled . | . . . Retrieved Matter . | . . . Parts Self-Destructed . | . . . Prevented . | . . . Kills | -11 -10 -10 ------- Run | Scr Mat Min Combat Hostiles Destroyed 16 | . 8 8 Guns 7 | . 5 2 AOE 9 | . 3 6 Classes Destroyed 3 | . 3 . Watcher 2 | . 2 . Swarmer 12 | . 6 6 Grunt 4 | . 2 2 Best Kill Streak 6 | . 6 3 Combat Bots Only 3 | . 3 3 Max Kills in Single Turn 2 | . 2 2 Gunslinging . | . . . Exploded 2 | . 2 2 Melee . | . . . Uniques/NPCs Destroyed . | . . . Combat | -11 -10 -10 -------- Run | Scr Mat Min Damage Taken 667 | . 312 355 Core 250 | . 142 108 Absorbed by Shields . | . . . Core Remaining (%) 100 | 100 . . Volleys Fired 40 | . 20 20 Largest 2 | . 2 2 Hottest 76 | . 60 76 Shots Fired 70 | . 35 35 Gun 63 | . 33 30 Cannon . | . . . Launcher 7 | . 2 5 Special . | . . . Kinetic 33 | . 18 15 Thermal 30 | . 15 15 Explosive 7 | . 2 5 Electromagnetic . | . . . Robot Hit Streak 9 | . 7 9 Robot Miss Streak 4 | . 3 4 Penetration Max . | . . . Secondary Targets 1 | . 1 . Max Gunslinging Chain 1 | . 1 . Shots Hit Robots 51 | . 23 28 Core Hits 24 | . 13 11 Critical Hits . | . . . Critical Kills . | . . . Critical Parts Destroyed . | . . . Melee Attacks . | . . . Impact . | . . . Slashing . | . . . Piercing . | . . . Sneak Attacks . | . . . Combat Hostiles . | . . . Follow-up Attacks . | . . . Damage Inflicted 1292 | . 388 904 Guns 630 | . 252 378 Cannons . | . . . Explosions 662 | . 136 526 Melee . | . . . Ramming . | . . . Kinetic 320 | . 147 173 Thermal 310 | . 105 205 Explosive 662 | . 136 526 Electromagnetic . | . . . Impact . | . . . Slashing . | . . . Piercing . | . . . Highest Corruption . | . . . Average Corruption . | . . . Corruption Purged . | . . . Overload Shots . | . . . Overflow Damage 12 | . . 12 Projectiles . | . . . Explosions 12 | . . 12 Melee . | . . . Knockbacks . | . . . Impact . | . . . Kinetic . | . . . Secondary . | . . . Self-Inflicted Damage 27 | . 27 . Shots 1 | . 1 . Rammed . | . . . Targets Rammed . | . . . Kicked . | . . . Crushed . | . . . Highest Temperature 255 | . 24 255 Average Temperature 85 | . 12 111 Received Heat Transfer 219 | . 48 171 Effects 2 | . . 2 Interference 2 | . . 2 Siege Activations . | . . . Robots Corrupted . | . . . Combat Hostiles . | . . . Parts Fried . | . . . Impact Corruptions . | . . . Robots Melted . | . . . Combat Hostiles . | . . . Parts Melted 1 | . 1 . Heat Transferred 768 | . 250 518 Parts Sabotaged . | . . . Parts Stolen . | . . . Parts Stripped . | . . . Power Chain Reactions . | . . . Missiles Intercepted . | . . . Alert | -11 -10 -10 ------- Run | Scr Mat Min Peak Influence 268 | . 268 232 Initial 37 | . . 37 Average 122 | . 123 134 Maximum Alert Level 1 | . 1 1 Low Security (%) 66 | 100 54 70 Level 1 33 | . 45 29 Level 2 . | . . . Level 3 . | . . . Level 4 . | . . . Level 5 . | . . . High Security . | . . . Max Security . | . . . Squads Dispatched 1 | . 1 . Investigation 1 | . 1 . Extermination . | . . . Reinforcement . | . . . Assault . | . . . Garrison . | . . . Intercept . | . . . Construction Impeded . | . . . Haulers Reinforced . | . . . Stealth | -11 -10 -10 --------- Run | Scr Mat Min Distress Signals 2 | . 1 1 Communications Jammed . | . . . Distress Signals . | . . . Times Spotted 24 | . 15 9 Peak Tracking Total 4 | . 4 3 Tactical Retreats 1 | . 1 . Traps | -11 -10 -10 ------- Run | Scr Mat Min Traps Triggered 2 | . 2 . Indirectly . | . . . Trap Hack Attempts . | . . . Triggered . | . . . Disarmed . | . . . Reprogrammed . | . . . Reused . | . . . Traps Extracted . | . . . Installed . | . . . Triggered . | . . . Machines | -11 -10 -10 ---------- Run | Scr Mat Min Machines Disabled 1 | . 1 . Max in Single Turn 1 | . 1 . Machines Sabotaged . | . . . Garrisons Compromised . | . . . Overloaded Fab Kills . | . . . Fab Network Shutdowns . | . . . Hacking | -11 -10 -10 --------- Run | Scr Mat Min Machines Accessed 4 | . 4 . Terminals 4 | . 4 . Fabricators . | . . . Repair Stations . | . . . Recycling Units . | . . . Scanalyzers . | . . . Garrison Access . | . . . Total Hacks 9 | . 9 . Successful 4 | . 4 . Failed 5 | . 5 . Catastrophic . | . . . Database Lockouts . | . . . Manual 9 | . 9 . Terminals 9 | . 9 . Fabricators . | . . . Repair Stations . | . . . Recycling Units . | . . . Scanalyzers . | . . . Garrison Access . | . . . Terminal Hacks 3 | . 3 . Branch Access Points 1 | . 1 . Terminal Index 1 | . 1 . Zone Layout 1 | . 1 . Fabricator Hacks . | . . . Repair Station Hacks . | . . . Recycling Unit Hacks . | . . . Scanalyzer . | . . . Garrison Access Hacks . | . . . Unauthorized Hacks 1 | . 1 . Terminals 1 | . 1 . Botnet 1 | . 1 . Fabricators . | . . . Repair Stations . | . . . Recycling Units . | . . . Scanalyzers . | . . . Garrison Access . | . . . Data Cores Recovered . | . . . Used . | . . . Hacking Detections 3 | . 3 . Full Trace Events . | . . . Feedback Events . | . . . Feedback Blocked . | . . . Robot Schematics Acquired . | . . . Robots Built . | . . . Matter . | . . . Time . | . . . Total Robot Build Rating . | . . . Part Schematics Acquired . | . . . Parts Built . | . . . Matter . | . . . Time . | . . . Total Part Build Rating . | . . . Parts Repaired . | . . . Time . | . . . Parts Recycled . | . . . Recycled Matter . | . . . Retrieved Matter . | . . . Retrieved Components . | . . . Parts Scanalyzed . | . . . Part Schematics Acquired . | . . . Parts Damaged . | . . . Bothacking | -11 -10 -10 ------------ Run | Scr Mat Min Used RIF Installer . | . . . Robots Hacked . | . . . Non-combat . | . . . Combat . | . . . Robot Hacks Applied . | . . . Relay Couplers Released . | . . . Robots Rewired . | . . . Allies Hacked . | . . . Hacks Repelled . | . . . Allies | -11 -10 -10 -------- Run | Scr Mat Min Total Allies . | . . . Largest Group . | . . . Highest-Rated Group . | . . . Highest-Rated Ally . | . . . Total Orders . | . . . Ally Attacks . | . . . Total Damage . | . . . Kills . | . . . Allies Corrupted . | . . . Allies Melted . | . . . Intel | -11 -10 -10 ------- Run | Scr Mat Min Robot Analysis Total . | . . . Derelict Logs Recovered 1 | . . 1 Drone Launches . | . . . Drone Recoveries . | . . . Exploration | -11 -10 -10 ------------- Run | Scr Mat Min Turns Passed 1212 | 74 477 661 Spaces Moved 628 | 56 310 262 Core 13 | 13 . . Treads . | . . . Legs 615 | 43 310 262 Wheels . | . . . Hover . | . . . Flight . | . . . Fastest Speed 50 | 50 120 180 Average Speed 163 | 111 125 218 Slowest Speed 240 | 150 180 240 Overloaded Moves . | . . . Propulsion Burnouts . | . . . Robots Hopped . | . . . Cave-ins Triggered . | . . . Exploration Rate (%) 43 | 5 66 58 Regions Visited 2 Branch Regions 1 Pre-discovered Areas . | . . . Known Exits Taken 1 | . 1 . Unknown Exits Taken 1 | 1 . . Scrap Searched . | . . . Spaces Dug . | . . . Terrain Destroyed 59 | . 13 46 Melee . | . . . Projectile . | . . . AOE 59 | . 13 46 Terrain Rammed . | . . . Walls Destroyed . | . . . Machines Disabled . | . . . Actions | -11 -10 -10 --------- Run | Scr Mat Min Total 746 | 64 364 318 Wait 51 | . 16 35 Move 626 | 55 309 262 Hop . | . . . Pick Up 13 | 3 10 . Fast Attach 8 | 6 2 . Attach . | . . . Detach . | . . . Swap 3 | . 2 1 Drop 5 | . 5 . Fire 40 | . 20 20 Melee . | . . . Ram . | . . . Kick . | . . . Crush . | . . . Escape Stasis . | . . . Rewire . | . . . Trap . | . . . Miscellaneous . | . . . Route ------- -11/Scrapyard -10/Materials (discovered 2 exits: [*Mat] / *Min) -10/Mines History --------- Turn | Location | Event 9 | -11/Scrapyard | Discovered new exit (range 15) 75 | -11/Scrapyard | Entered Materials 260 | -10/Materials | Core integrity fell below 50% 304 | -10/Materials | Build established: Mutant 321 | -10/Materials | Identified exit to Mines 385 | -10/Materials | Discovered new exit (range 6) 552 | -10/Materials | Entered Mines 607 | -10/Mines | Learned Materials security intel 760 | -10/Mines | Core integrity fell below 20% 934 | -10/Mines | Excavation squad dispatched 934 | -10/Mines | A large section of the Mines collapsed 1184 | -10/Mines | Excavation squad dispatched 1213 | -10/Mines | Destroyed by G-34 Mercenary with Small Laser Last Messages --------------- 00607_ Acquired derelict log, extracted data. Data stored: Materials security intel. 00758_ G-47 Trooper heat spikes uncontrollably. 00758_ G-47 Trooper overheating. 00759_ G-47 Trooper destroyed. 00766_ Aluminum Leg destroyed. 00767_ Overheating: System interference. 00767_ Assault Rifle temporarily disabled. 00767_ Beam Rifle temporarily disabled. 00789_ G-34 Mercenary heat short circuits Aluminum Leg. 00791_ G-34 Mercenary destroyed. 00792_ Acquired 48 matter. 00794_ Acquired 59 matter. 00934_ ALERT: Suspicious cave-in, suspected derelict activity in mines. Dispatching escorted excavation squad. 00934_ T-07 Excavator is excavating. 01020_ Acquired 18 matter. 01054_ K-01 Serf collects debris. 01184_ ALERT: Derelict activity in mines confirmed. Dispatching additional escorted excavation squad. Map ----- +----------------------------------------------------+ | ????????????###??????????????????????????? | | ??????????### ##???####??????????????????? | | ?????????## #??## ####???????????????? | | ????????## #??# ##??????????????? | | ??????### #### ##?????????????? | | ?????## ## #?????????????? | | ?????# #?????????????? | | ?????# ## ##?????????????? | | ?????# ### ##??????????????? | | ?????# ##### ####???????????????? | | ?????## #######??????????????????? | | ??????### ##??????????????????????? | | ????????## #??????????????????????? | | ?????????## #??????????????????????? | | ??????????### ##?????????????????????? | | ????????????### t######????????????????? | | ??????????????## *==####???????????????? | | ???????????????## ! #"# #???????????????? | | ????????????????# ###### #???????????????? | | ????????????????# #??# ##??????????????? | | ????????????????# #??? ?????????????? | | ????????????????# #???? ???????????? | | ????????????????# #?????## ####??????????? | | ?????####???????# #??????? #?????????????? | | ????## ##??????# #??????? #?????????????? | | ????# #??????#@#??????# #?????????????? | | ???## #??????# ####### ##????????????? | | ???# #########g## " #????????????? | | ???# # tg " #????????????? | | ???## ## ######## """" #????????????? | | ????#+### #??????# """ #????????????? | | ????# ### #??????# %%""" #????????????? | | ????# #??????## #????????????? | | ????# #####???????##### ##????????????? | | ????# #???????????????### #?????????????? | | ????# #?????????????????# ####??????????? | | ???## ####??????????????# #??????????? | | ??## ##?????###?????# ## #??????????? | | ??# #????## ####### #??#??????????? | | ??# ##?#### #?????????????? | | ??# ###### ### #######?????????????? | | ??## ##?## ##?# #???????????????????? | | ???####?## ##??# #???????????????????? | | ???????## ##??# #?#????? ## ????????? | | ???????# ##?# #??### #???????? | | ???????# ##### #?? #* ????????? | | ???????# ### #??? ??# #????????? | | ???????##???## #??? ?? ####?????? | | ?????????????## ##?? ?# = [ ?????? | | ??????????????## ##? ## # ??????? | +----------------------------------------------------+ Best States ------------- Heat Dissipation 25 Energy Generation 10 Energy Capacity 250 Matter Stores 300 Matter Capacity 300 Sight Range 16 Terrain Scan Density 10 Evasion (%) 40 Item Schematics ----------------- None Robot Schematics ------------------ None Fabricated ------------ Nothing Alien Tech Used ----------------- None Achievements -------------- None Challenges ------------ None Game ------ Seed ShadeTerrabombMediator Manual? 0 Play Time 00:08:03 Cumulative 41.9 hours Start 2021.04.19 @ 20:13:02 End 2021.04.19 @ 20:19:20 Sessions 1 Manual Loads 0 Difficulty Rogue Special Mode None Game No. 88 Rogue 77 Adventurer 4 Explorer 7 Win Type - Total 2 Types 2/0/0/0/0/0/0/0/0 Lore% 37 Gallery% 61 Achievement% 39 Wizard Run 0 Options --------- ASCII 0 Keyboard 1 Movement Numpad Keybinds 0 Fullscreen 1 Font 18/SmallcapsGlow Map View 76x50 Tactical HUD 1 Map Filters NONE Filters NONE Steam 1 RUN: a2c598d5-88fd-44de-a646-8913f07d705b